bitfinex/quotes_ETHUSD_20250210
["timestamp","ask_amount","ask_price","bid_price","bid_amount"]
[1739191575884,3.77786,2647.0,2646.9,2.31085879]
[1739191580014,3.778,2646.9,2646.6,2.18665959]
[1739191580231,3.77786,2647.0,2646.6,2.18665959]
[1739191580817,3.77786,2647.0,2646.6,5.96508959]
[1739191580996,3.77772,2647.1,2646.9,2.18665959]
[1739191581193,4.9459375,2647.6,2647.2,3.77753]
[1739191581393,4.53291,2648.0,2647.5,5.96376959]
[1739191581603,3.77624,2648.2,2647.8,2.18665959]
[1739191581803,3.77629,2648.1,2647.8,2.18665959]
[1739191582124,0.7564,2648.4,2647.8,2.18665959]
[1739191582323,3.7757,2648.6,2648.1,2.18665959]
[1739191582496,3.0,2648.5,2648.1,2.18665959]
[1739191582703,0.7564,2648.7,2648.1,2.18665959]
[1739191582898,0.7564,2648.7,2648.4,2.18665959]
[1739191583104,3.77545,2648.7,2648.4,2.18665959]
[1739191583515,3.77572,2648.5,2648.4,2.18665959]
[1739191584317,7.55125,2648.6,2648.4,2.18665959]
[1739191584511,3.77558,2648.6,2648.4,2.18665959]
[1739191585017,3.77572,2648.5,2648.4,2.18665959]
[1739191586542,3.77609,2648.3,2648.1,2.18665959]
[1739191586745,3.77614,2648.2,2648.1,2.18665959]
[1739191587043,3.77631,2648.1,2647.8,2.18665959]
[1739191587831,3.77657,2647.9,2647.8,2.18665959]
[1739191589014,3.77631,2648.1,2647.8,2.18665959]
[1739191589414,3.77655,2648.0,2647.8,2.18665959]
[1739191590413,3.77657,2647.9,2647.8,2.18665959]
[1739191593353,3.77684,2647.8,2647.5,2.18665959]
[1739191593558,3.77684,2647.8,2647.6,0.12286893]
[1739191593852,3.77679,2647.8,2647.6,0.12286893]
[1739191595756,3.77686,2647.7,2647.6,0.12286893]
[1739191596218,3.77679,2647.8,2647.6,0.12286893]
[1739191596552,3.77686,2647.7,2647.6,0.12286893]
[1739191596723,3.77679,2647.8,2647.6,0.12286893]
[1739191596930,3.77686,2647.7,2647.6,0.12286893]
[1739191601088,6.77686,2647.7,2647.6,0.12286893]
[1739191601387,3.77737,2647.4,2647.2,2.18665959]
[1739191601691,3.77743,2647.3,2647.2,2.18665959]
[1739191603872,3.77737,2647.4,2647.2,2.18665959]
[1739191604071,3.77743,2647.3,2647.2,2.18665959]
[1739191605404,3.77786,2647.0,2646.9,4.55583518]
[1739191605982,3.77773,2647.1,2646.9,4.55583518]
[1739191606803,3.77786,2647.0,2646.9,4.55583518]
[1739191607475,7.55528,2647.2,2646.9,4.55583518]
[1739191607995,3.77776,2647.1,2646.9,4.55583518]
[1739191608526,3.77786,2647.0,2646.9,4.55583518]
[1739191611297,3.7776,2647.2,2646.9,4.55583518]
[1739191611498,3.77782,2647.1,2646.9,4.55583518]
[1739191612009,3.77786,2647.0,2646.9,4.55583518]
[1739191613304,0.7928,2647.1,2646.9,4.55583518]
[1739191614640,4.57054,2647.1,2646.9,4.55583518]
[1739191615541,0.7928,2647.1,2646.9,4.55583518]
[1739191616743,4.57053,2647.1,2646.9,4.55583518]
[1739191617343,3.77786,2647.0,2646.9,4.55583518]
[1739191620765,3.77786,2647.0,2646.9,2.36917559]
[1739191620924,6.77786,2647.0,2646.9,2.48089118]
[1739191621125,6.77786,2647.0,2646.9,2.36917559]
[1739191621662,6.77786,2647.0,2646.9,2.48116883]
[1739191622646,7.55806,2647.0,2646.9,2.48116883]
[1739191623340,7.55806,2647.0,2646.9,2.36917559]
[1739191623740,7.55806,2647.0,2646.9,2.48147857]
[1739191624329,3.0,2647.0,2646.9,4.66813816]
[1739191624530,0.7802,2647.3,2646.9,8.44606816]
[1739191624858,3.77757,2647.2,2646.9,4.66813816]
[1739191625035,3.77786,2647.0,2646.9,4.66813816]
[1739191625235,3.77786,2647.0,2646.9,2.48147857]
[1739191625563,4.55806,2647.0,2646.9,2.48147857]
[1739191627633,3.77786,2647.0,2646.9,2.48147857]
[1739191628378,6.77785,2647.1,2646.9,2.48147857]
[1739191628752,3.77786,2647.0,2646.9,2.48147857]
[1739191631048,6.77775,2647.1,2646.9,4.66813816]
[1739191631237,3.0,2647.0,2646.9,4.66813816]
[1739191631679,6.77786,2647.0,2646.9,4.66813816]
[1739191635437,6.77786,2647.0,2646.9,2.48147857]
[1739191639185,6.77786,2647.0,2646.9,2.48090439]
[1739191644980,3.0,2647.0,2646.9,2.48090439]
[1739191645153,6.77786,2647.0,2646.9,2.48090439]
[1739191645845,6.77786,2647.0,2646.9,4.66756398]
[1739191647453,6.77786,2647.0,2646.9,2.48090439]
[1739191648673,7.58476,2647.0,2646.9,2.48090439]
[1739191648847,7.58476,2647.0,2646.9,0.1117288]
[1739191649252,3.7781,2646.9,2646.6,2.18665959]
[1739191650466,6.77786,2647.0,2646.6,2.18665959]
[1739191650890,3.77816,2646.8,2646.6,2.18665959]
[1739191651660,3.77816,2646.8,2646.3,9.74417959]
[1739191652393,3.77816,2646.8,2646.3,9.74416959]
[1739191652870,6.77786,2647.0,2646.4,3.77861]
[1739191653190,3.77803,2646.9,2646.4,3.77861]
[1739191653359,3.77803,2646.9,2646.5,0.11197593]
[1739191653898,3.7782,2646.8,2646.5,0.11197593]
[1739191654271,3.7782,2646.8,2646.3,9.74414959]
[1739191654469,3.7782,2646.8,2646.6,0.11191547]
[1739191654670,3.7782,2646.8,2646.3,9.74414959]
[1739191654912,3.7782,2646.8,2646.7,0.11185502]
[1739191655074,3.7782,2646.8,2646.3,9.74414959]
[1739191655270,7.5304,2646.8,2646.7,0.11185502]
[1739191655593,3.7787,2646.5,2646.0,2.18665959]
[1739191655794,3.77829,2646.7,2646.2,3.77891]
[1739191655996,3.0,2646.8,2646.4,3.77868]
[1739191656216,4.53013,2647.0,2646.6,3.77841]
[1739191656510,3.0,2647.1,2646.7,3.89014514]
[1739191658309,0.7522,2647.2,2646.7,0.11193514]
[1739191658514,3.77795,2647.0,2646.7,0.11193514]
[1739191658675,7.55594,2647.0,2646.7,0.11193514]
[1739191659495,3.77795,2647.0,2646.5,3.77852]
[1739191659698,7.55591,2647.0,2646.8,0.11187469]
[1739191659880,7.55591,2647.0,2646.5,3.77852]
[1739191660091,6.77795,2647.0,2646.9,0.11181425]
[1739191660319,6.77795,2647.0,2646.4,3.77862]
[1739191660613,6.77795,2647.0,2646.5,3.77856]
[1739191660814,6.77795,2647.0,2646.6,0.11200627]
[1739191661208,3.0,2647.0,2646.6,0.11200627]
[1739191661415,3.778,2646.9,2646.6,0.11200627]
[1739191661613,3.778,2646.9,2646.4,3.77862]
[1739191661923,3.778,2646.9,2646.7,0.11194582]
[1739191662211,3.778,2646.9,2646.8,0.11188537]
[1739191662393,3.778,2646.9,2646.4,3.77862]
[1739191662604,3.778,2646.9,2646.5,3.89062672]
[1739191663417,3.0,2647.0,2646.5,7.66909672]
[1739191663575,6.77789,2647.0,2646.5,3.89053672]
[1739191664085,6.77789,2647.0,2646.5,7.66904672]
[1739191664291,6.77789,2647.0,2646.5,3.89053672]
[1739191664504,3.778,2646.9,2646.5,3.89053672]
[1739191666711,3.0,2647.0,2646.6,3.77839]
[1739191666897,6.77788,2647.0,2646.6,2.29866586]
[1739191668917,6.77788,2647.0,2646.6,6.07708586]
[1739191669117,6.77788,2647.0,2646.6,2.29866586]
[1739191669519,3.77807,2646.9,2646.6,2.29866586]
[1739191669825,0.7869,2646.8,2646.6,0.11200627]
[1739191670024,3.77807,2646.9,2646.6,0.11200627]
[1739191671624,3.7869,2647.0,2646.6,0.11200627]
[1739191671799,3.0,2647.0,2646.7,3.77822]
[1739191672122,3.0,2647.0,2646.8,0.11188537]
[1739191672437,3.77695,2647.7,2646.9,2.18665959]
[1739191672583,0.7869,2647.8,2647.4,3.77721]
[1739191672788,3.0,2647.7,2647.5,0.11117934]
[1739191673102,4.56362,2647.8,2647.5,0.11117934]
[1739191673296,0.7869,2647.8,2647.5,0.11117934]
[1739191673697,0.7869,2647.8,2647.5,2.29783893]
[1739191673902,3.77629,2648.1,2647.6,3.77698]
[1739191673903,4.56319,2648.1,2647.6,3.77698]
[1739191674102,3.0,2648.0,2647.6,3.88809893]
[1739191674412,0.7869,2648.1,2647.6,0.11111893]
[1739191674590,4.56295,2648.3,2647.6,0.11111893]
[1739191674784,3.7763,2648.1,2647.6,0.11111893]
[1739191675025,4.56295,2648.3,2647.7,3.77676]
[1739191675389,3.0,2648.2,2647.8,0.11065642]
[1739191675715,3.0,2648.0,2647.5,2.18665959]
[1739191676019,6.77651,2648.0,2647.5,2.18665959]
[1739191676325,6.77651,2648.0,2647.6,0.11077722]
[1739191677391,0.7696,2647.8,2647.6,0.11077722]
[1739191677587,3.77686,2647.7,2647.6,0.11077722]
[1739191677791,0.7696,2647.8,2647.3,3.77742]
[1739191678014,7.54636,2647.8,2647.3,3.77742]
[1739191678187,3.7696,2647.8,2647.3,3.77742]
[1739191678388,3.7696,2647.8,2647.4,3.88793321]
[1739191678827,3.77714,2647.5,2647.4,0.11066321]
[1739191678998,3.7775,2647.3,2646.9,2.18665959]
[1739191679404,3.7775,2647.3,2647.0,0.11090491]
[1739191680723,3.77714,2647.5,2647.0,0.11090491]
[1739191680923,3.77743,2647.3,2647.0,0.11090491]
[1739191681422,8.32456,2647.3,2647.0,0.11090491]
[1739191682327,4.54703,2647.3,2647.0,0.11090491]
[1739191683395,4.54683,2647.5,2647.0,3.88867491]
[1739191683623,4.54683,2647.5,2647.1,3.7777]
[1739191683927,3.0,2647.6,2647.2,6.07500364]
[1739191684223,3.0,2647.6,2647.3,7.55468]
[1739191684425,3.0,2647.6,2647.3,3.77734]
[1739191684631,3.0,2647.6,2647.4,0.11092472]
[1739191685032,3.77664,2647.9,2647.4,3.88819472]
[1739191685528,2.18665959,2648.7,2647.4,3.88819472]
[1739191685529,4.05325,2648.9,2647.5,5.96372959]
[1739191685691,3.0,2647.9,2647.5,6.0745939]
[1739191685895,3.0,2647.9,2647.5,2.2975239]
[1739191686096,6.77669,2647.9,2647.5,2.2975239]
[1739191686317,3.0,2647.9,2647.5,6.0745939]
[1739191686529,3.0,2647.9,2647.5,6.0746639]
[1739191686708,6.77659,2647.9,2647.5,2.2975239]
[1739191687109,3.0,2648.0,2647.6,3.77699]
[1739191687308,0.7696,2648.2,2647.5,6.0745739]
[1739191687309,4.54581,2648.2,2647.5,6.0745739]
[1739191687510,3.0,2648.1,2647.7,0.11074349]
[1739191687706,3.0,2648.1,2647.7,3.77685]
[1739191687915,6.77638,2648.1,2647.8,0.11068309]
[1739191688230,3.0,2648.1,2647.9,0.1106227]
[1739191688541,3.77679,2647.8,2647.2,2.18665959]
[1739191688717,3.77722,2647.5,2647.2,2.18665959]
[1739191689443,3.77701,2647.6,2647.2,2.18665959]
[1739191689899,3.77736,2647.4,2647.2,2.18665959]
[1739191690475,7.55473,2647.4,2646.9,5.96458959]
[1739191690752,4.5877,2647.2,2646.9,2.18665959]
[1739191691043,4.5877,2647.2,2646.6,2.18665959]
[1739191691352,4.5877,2647.2,2646.7,3.77826]
[1739191691854,4.5877,2647.2,2646.7,3.77821]
[1739191692061,4.5877,2647.2,2646.7,7.55642]
[1739191692357,0.8101,2647.2,2646.8,3.77814]
[1739191692761,0.8101,2647.2,2646.7,3.7782]
[1739191693133,4.5877,2647.2,2646.7,3.7782]
[1739191693856,3.7782,2646.8,2646.3,2.56505959]
[1739191694723,3.77808,2646.9,2646.4,3.77868]
[1739191696455,3.77794,2647.0,2646.0,5.96585959]
[1739191696456,3.7786,2646.5,2646.0,5.96585959]
[1739191697259,3.77848,2646.6,2646.0,2.18665959]
[1739191697474,3.77831,2646.7,2646.3,2.18665959]
[1739191697651,3.77844,2646.6,2646.3,2.18665959]
[1739191698019,3.77865,2646.5,2646.0,5.96580959]
[1739191698216,3.77844,2646.6,2646.0,5.96580959]
[1739191698454,3.77873,2646.4,2646.0,5.96580959]
[1739191698655,3.77873,2646.4,2646.1,0.11180129]
[1739191700060,7.55755,2646.4,2646.1,0.11180129]
[1739191700261,3.75825941,2647.0,2646.1,0.11180129]
[1739191700262,3.779,2646.2,2646.1,0.11180129]
[1739191700567,3.77911,2646.2,2645.7,2.19476479]
[1739191700760,3.779,2646.2,2646.1,0.11249018]
[1739191700928,3.77925,2646.1,2645.7,2.19476479]
[1739191701126,3.779,2646.2,2646.1,0.11249018]
[1739191701341,8.36797,2646.3,2645.7,5.97439479]
[1739191701555,8.36797,2646.3,2646.1,0.11249018]
[1739191701860,4.58897,2646.3,2645.8,3.77952]
[1739191702154,3.77901,2646.2,2645.7,5.97439479]
[1739191702354,3.77901,2646.2,2645.9,0.11261114]
[1739191702554,3.77914,2646.1,2645.8,0.11267163]
[1739191702755,3.77914,2646.1,2645.7,2.19476479]
[1739191702960,3.77914,2646.1,2645.9,0.11261114]
[1739191703257,3.77914,2646.1,2646.0,0.11255066]
[1739191703657,3.77901,2646.2,2646.0,0.11273765]
[1739191703958,3.77914,2646.1,2645.7,2.19476479]
[1739191705463,3.77901,2646.2,2645.7,5.97440479]
[1739191705635,3.77915,2646.1,2645.7,2.19476479]
[1739191706152,3.77901,2646.2,2645.7,2.19476479]
[1739191706465,3.77949,2645.9,2645.7,2.19476479]
[1739191706648,3.77957,2645.8,2645.7,2.19476479]
[1739191708185,3.77957,2645.8,2645.7,0.0081052]
[1739191708483,4.58967,2645.8,2645.7,0.0081052]
[1739191708848,4.58967,2645.8,2645.7,5.2e-06]
[1739191708849,7.58967,2645.8,2645.7,5.2e-06]
[1739191710470,4.59067,2645.1,2645.0,2.60447262]
[1739191710676,3.8101,2645.1,2644.2,2.18665959]
[1739191710861,3.8101,2645.1,2643.6,8.86]
[1739191710862,3.78158,2644.4,2643.9,2.18665959]
[1739191711070,3.78158,2644.4,2644.3,0.11484606]
[1739191711258,3.78171,2644.3,2643.9,2.18665959]
[1739191711456,3.78163,2644.4,2643.9,2.18665959]
[1739191711681,3.78144,2644.5,2643.9,2.18665959]
[1739191711682,3.78144,2644.5,2643.9,5.96891959]
[1739191711895,3.78167,2644.4,2643.9,2.18665959]
[1739191712060,3.0,2644.5,2643.9,2.18665959]
[1739191712258,3.0,2644.5,2644.2,2.18665959]
[1739191712695,3.78157,2644.4,2643.9,5.96889959]
[1739191713291,3.0,2644.6,2644.2,2.18665959]
[1739191713495,3.0,2644.6,2644.3,0.11523654]
[1739191713664,7.59167,2644.4,2644.3,0.11523654]
[1739191714067,3.78186,2644.2,2644.1,0.0162807]
[1739191714989,3.78186,2644.2,2644.1,0.12819671]
[1739191715197,3.78186,2644.2,2644.1,0.0162807]
[1739191715373,3.78186,2644.2,2644.1,0.12819671]
[1739191715572,6.78172,2644.3,2644.1,0.12819671]
[1739191715767,3.78186,2644.2,2644.1,0.12819671]
[1739191717463,3.78186,2644.2,2644.1,0.0162807]
[1739191718402,4.59196,2644.2,2644.1,0.0162807]
[1739191719499,0.8101,2644.1,2642.6,8.86]
[1739191719703,0.1,2642.4,2640.3,0.33559722]
[1739191719999,0.1,2640.4,2640.3,0.146051]
[1739191720158,0.9101,2640.4,2640.3,0.146051]
[1739191720559,2.16704,2640.8,2640.3,0.146051]
[1739191720560,0.1,2640.8,2640.7,3.78687]
[1739191720797,0.1,2640.6,2640.5,4.55986]
[1739191720995,3.78579,2641.5,2640.6,6.78701]
[1739191721207,0.7694,2642.0,2641.0,5.97299959]
[1739191721375,0.7694,2642.0,2641.2,3.78601]
[1739191721564,0.7694,2642.0,2641.3,2.18665959]
[1739191721762,0.82,2642.4,2641.6,2.18665959]
[1739191722004,4.60448,2642.4,2641.2,2.18665959]
[1739191722160,0.82,2643.0,2642.2,4.56991]
[1739191722475,3.78316,2643.3,2642.7,2.18665959]
[1739191722659,0.82,2643.8,2642.7,37.18665959]
[1739191723064,3.78292,2643.5,2643.0,2.18665959]
[1739191723261,3.78337,2643.2,2642.7,2.18665959]
[1739191723684,3.78315,2643.3,2642.6,2.70104244]
[1739191723887,0.82,2643.8,2642.2,3.48624244]
[1739191724088,3.78414,2642.7,2642.2,3.48624244]
[1739191724401,3.78414,2642.7,2641.1,9.186]
[1739191724402,3.78418,2642.6,2641.9,0.7852]
[1739191725103,3.0,2642.7,2641.9,0.7852]
[1739191725307,3.78463,2642.3,2641.8,2.70104244]
[1739191725690,3.78433,2642.5,2641.8,2.70104244]
[1739191725691,3.0,2642.4,2641.8,2.70104244]
[1739191725900,3.78477,2642.2,2641.8,2.70104244]
[1739191726263,0.82,2642.3,2641.1,0.7852]
[1739191726466,3.0,2641.6,2641.1,0.7852]
[1739191726713,3.78577,2641.5,2640.7,0.7852]
[1739191727182,0.82,2642.0,2640.7,0.7852]
[1739191727383,3.78587,2641.4,2640.7,0.7852]
[1739191727703,3.82,2642.0,2640.7,0.7852]
[1739191727867,3.7863,2641.1,2640.3,6.63448344]
[1739191728079,3.7863,2641.1,2640.3,7.41968344]
[1739191728270,3.78656,2641.0,2640.3,3.63229344]
[1739191728471,4.60617,2641.2,2640.4,3.87765638]
[1739191728665,3.7866,2640.9,2640.4,0.09035638]
[1739191730180,3.78712,2640.6,2640.4,0.09035638]
[1739191730391,3.78716,2640.5,2640.4,0.09035638]
[1739191730585,3.78712,2640.6,2640.4,0.09035638]
[1739191730982,3.0,2640.9,2640.4,0.09035638]
[1739191731167,3.78697,2640.7,2640.4,0.09035638]
[1739191731366,3.78703,2640.6,2640.4,0.09035638]
[1739191731769,3.78716,2640.5,2640.4,0.09035638]
[1739191732316,3.0,2640.4,2640.3,0.146051]
[1739191732528,6.78773,2640.1,2640.0,0.1]
[1739191733491,6.78773,2640.1,2640.0,0.18678086]
[1739191734623,3.78917,2639.1,2638.2,6.49137244]
[1739191734925,3.7888,2639.4,2638.8,2.70104244]
[1739191735075,6.78895,2639.3,2638.8,2.70104244]
[1739191735272,3.78911,2639.2,2638.9,0.0813893]
[1739191735585,3.0,2639.3,2638.9,0.0813893]
[1739191735925,3.78905,2639.2,2638.9,0.0813893]
[1739191736069,6.78931,2639.0,2638.9,0.0813893]
[1739191736269,3.78971,2638.8,2638.2,2.70104244]
[1739191736517,6.78919,2639.1,2638.3,0.08175422]
[1739191736720,3.0,2638.9,2638.5,2.70104244]
[1739191737124,3.0,2639.0,2638.6,0.08157174]
[1739191737276,6.78981,2638.7,2638.6,0.08157174]
[1739191737471,6.78981,2638.7,2638.1,2.70104244]
[1739191737702,3.0,2638.7,2638.2,0.08181505]
[1739191738017,3.78989,2638.6,2638.2,0.08181505]
[1739191738224,6.78974,2638.7,2638.2,0.08181505]
[1739191738727,3.0,2638.7,2638.4,2.70104244]
[1739191739031,6.78983,2638.7,2638.2,0.08181505]
[1739191739188,6.78983,2638.7,2637.5,0.55]
[1739191739189,6.78988,2638.6,2638.5,0.0823946]
[1739191739398,3.79095,2637.9,2637.5,2.70104244]
[1739191739728,3.79039,2638.3,2637.8,0.07503659]
[1739191739889,3.78944,2639.0,2638.1,2.70104244]
[1739191740090,3.78963,2638.8,2638.4,2.70104244]
[1739191740332,0.8266,2639.3,2638.5,0.0746107]
[1739191740670,6.78988,2638.6,2638.5,0.0746107]
[1739191740807,3.0,2638.4,2637.8,0.7519]
[1739191741015,3.79008,2638.5,2637.8,4.54292]
[1739191741213,3.0,2638.4,2637.9,0.07504492]
[1739191741415,3.79032,2638.3,2637.9,0.07504492]
[1739191741582,3.0,2638.6,2638.0,3.79062]
[1739191741781,3.0,2638.6,2638.3,3.79021]
[1739191742100,3.78954,2638.9,2638.4,2.77578316]
[1739191742298,3.78954,2638.9,2638.4,6.56594316]
[1739191742630,3.78954,2638.9,2638.4,2.77578316]
[1739191742924,3.78946,2638.9,2638.4,2.77578316]
[1739191743082,3.0,2639.3,2638.4,2.77578316]
[1739191743282,3.78966,2638.8,2638.4,0.07474072]
[1739191743522,3.79003,2638.5,2637.9,3.79079]
[1739191743718,3.79003,2638.5,2637.8,7.24395244]
[1739191743719,3.79042,2638.3,2637.8,7.24395244]
[1739191744032,3.79075,2638.0,2637.8,0.7519]
[1739191744177,3.79058,2638.2,2637.7,0.146051]
[1739191744377,3.79024,2638.4,2637.7,0.146051]
[1739191744629,3.8266,2638.6,2637.7,3.937221]
[1739191744920,3.79055,2638.2,2637.7,0.146051]
[1739191745514,3.0,2638.3,2637.8,3.79103]
[1739191745725,3.0,2638.3,2637.7,0.146051]
[1739191745881,0.8266,2638.2,2637.7,0.146051]
[1739191746077,3.79103,2637.8,2637.7,0.146051]
[1739191746480,3.79089,2637.9,2637.7,0.146051]
[1739191746894,6.79103,2637.8,2637.7,0.146051]
[1739191747423,0.2,2636.8,2634.9,2.27435737]
[1739191747583,3.0,2637.7,2634.9,2.27435737]
[1739191747584,0.8266,2635.6,2634.9,2.27435737]
[1739191747779,0.8266,2636.7,2635.2,0.7519]
[1739191747980,0.8266,2635.9,2635.1,0.825]
[1739191748185,3.0,2636.2,2635.1,0.825]
[1739191748385,3.0,2636.1,2635.4,3.79437]
[1739191748584,3.0,2636.2,2635.8,3.79386]
[1739191748789,0.8266,2636.3,2635.2,2.70104244]
[1739191749122,0.8266,2636.7,2635.7,0.7627]
[1739191749632,3.8266,2636.7,2635.7,0.7627]
[1739191749814,0.8204,2637.2,2636.4,3.79294]
[1739191750021,0.8204,2637.2,2636.3,3.79317]
[1739191750310,4.6123,2637.2,2636.3,3.79317]
[1739191750510,0.8204,2637.2,2635.9,7.58754]
[1739191750736,0.8204,2637.2,2636.1,7.58696]
[1739191750916,0.8204,2637.2,2636.1,2.90950792]
[1739191751316,0.8204,2637.6,2636.5,0.7627]
[1739191751532,3.0,2637.2,2636.5,0.7627]
[1739191751732,3.79207,2637.1,2636.5,0.7627]
[1739191751957,3.0,2637.2,2636.5,4.55555]
[1739191752100,6.7919,2637.2,2636.5,4.55555]
[1739191752553,6.7919,2637.2,2636.5,3.79285]
[1739191752698,0.8204,2637.6,2636.7,3.79261]
[1739191752699,3.0,2637.3,2636.7,3.79261]
[1739191752904,4.61183,2637.6,2636.8,3.7924]
[1739191753126,0.8204,2637.6,2636.8,3.79247]
[1739191753340,0.8204,2637.6,2637.0,3.79214]
[1739191753521,3.8204,2637.6,2637.0,3.79214]
[1739191753715,0.8204,2637.6,2636.8,3.79247]
[1739191754035,0.8204,2637.6,2636.6,3.7927]
[1739191754233,3.8204,2637.6,2636.4,3.79303]
[1739191754416,3.0,2637.0,2636.4,3.79303]
[1739191755168,6.79221,2637.0,2636.4,3.79303]
[1739191755315,3.0,2637.0,2636.4,3.79303]
[1739191755655,6.79222,2637.0,2636.4,3.79303]
[1739191755864,3.0,2637.0,2636.4,3.79303]
[1739191756077,3.0,2637.0,2636.4,7.58594]
[1739191756231,3.0,2637.2,2636.1,0.8194]
[1739191756431,0.8204,2637.6,2636.2,0.03792962]
[1739191756657,4.61174,2637.6,2636.9,3.79223]
[1739191756978,3.8204,2637.6,2637.1,3.79202]
[1739191757131,3.8204,2637.6,2636.9,3.79223]
[1739191757332,3.79157,2637.5,2636.9,3.79223]
[1739191757531,3.79157,2637.5,2636.7,3.79261]
[1739191757735,3.0,2637.3,2636.8,3.79242]
[1739191758268,3.0,2637.3,2636.9,3.79228]
[1739191758481,3.0,2637.3,2636.7,3.79251]
[1739191758635,0.8204,2637.6,2637.0,0.06147055]
[1739191758835,3.8204,2637.6,2637.0,3.79218]
[1739191759037,0.8204,2637.6,2637.2,3.79188]
[1739191759263,3.0,2637.8,2637.3,3.79173]
[1739191759431,3.79094,2637.9,2637.3,0.06128789]
[1739191760047,3.79112,2637.8,2637.0,3.7921]
[1739191760253,3.0,2637.7,2637.4,0.06122701]
[1739191760480,3.0,2637.7,2637.2,3.79183]
[1739191760653,3.0,2637.7,2637.5,0.06116614]
[1739191760986,3.0,2637.7,2637.6,0.06110527]
[1739191761334,3.0,2637.7,2637.2,3.79183]
[1739191761536,0.7678,2638.0,2637.6,0.06110527]
[1739191761740,0.7678,2638.0,2637.4,3.79151]
[1739191762136,3.7678,2638.0,2637.5,0.06107596]
[1739191762337,7.55858,2638.0,2637.5,0.06107596]
[1739191763748,0.7678,2638.0,2637.5,0.06107596]
[1739191763913,3.7904,2638.3,2637.8,3.79102]
[1739191764238,7.55807,2638.4,2637.9,0.06073183]
[1739191764399,3.0,2638.4,2637.9,0.06073183]
[1739191764598,3.78998,2638.6,2638.0,3.79074]
[1739191764802,3.78998,2638.6,2637.9,0.06073183]
[1739191764803,3.79005,2638.5,2637.9,0.06073183]
[1739191765062,3.78981,2638.7,2638.1,3.85119014]
[1739191765234,4.6098,2638.8,2638.1,3.79058]
[1739191765413,0.8202,2638.8,2638.2,3.8508693]
[1739191765741,4.12822,2639.1,2638.4,3.79009]
[1739191765901,4.94842,2639.1,2638.4,3.79008]
[1739191766102,4.94842,2639.1,2637.9,4.61387]
[1739191766103,0.8202,2639.1,2638.5,0.0601231]
[1739191766452,0.8202,2639.1,2638.7,3.78963]
[1739191766594,3.78855,2639.6,2638.8,3.78959]
[1739191766801,3.78891,2639.3,2638.8,0.05974468]
[1739191767020,3.0,2639.3,2638.8,3.84932468]
[1739191767223,6.78898,2639.3,2638.7,7.57948]
[1739191767575,3.0,2639.3,2638.9,3.78945]
[1739191767775,3.7885,2639.6,2639.1,3.78916]
[1739191768071,3.0,2639.7,2639.1,3.78916]
[1739191768288,3.0,2639.7,2639.2,3.84850148]
[1739191768577,3.78771,2640.2,2639.5,3.7885]
[1739191768780,3.8202,2640.3,2639.7,3.78819]
[1739191769079,0.8202,2640.3,2639.7,3.78819]
[1739191769367,3.78705,2640.6,2640.1,3.78771]
[1739191769368,0.8202,2640.6,2640.1,3.78771]
[1739191769538,0.8202,2640.6,2640.1,3.78762]
[1739191769723,3.78687,2640.7,2640.2,0.05841735]
[1739191770125,6.78704,2640.6,2640.2,0.05841735]
[1739191770537,0.8202,2640.9,2640.2,0.05841735]
[1739191770538,3.8202,2640.9,2640.2,0.05841735]
[1739191770770,0.8202,2640.9,2640.2,0.05841735]
[1739191770975,3.78744,2640.3,2640.2,0.05841735]
[1739191771126,3.78788,2640.0,2639.4,3.78863]
[1739191771332,3.78782,2640.1,2639.5,0.05853053]
[1739191771532,3.78759,2640.2,2639.5,0.05853053]
[1739191771726,3.0,2640.6,2639.5,0.05853053]
[1739191771727,6.78706,2640.6,2639.5,0.05853053]
[1739191771977,6.78706,2640.6,2639.8,3.78805]
[1739191771978,3.0,2640.4,2639.8,3.78805]
[1739191772180,3.78734,2640.4,2639.8,3.78805]
[1739191772376,3.78747,2640.3,2639.9,0.05838267]
[1739191772576,3.78773,2640.2,2639.9,0.05838267]
[1739191772734,7.57545,2640.2,2639.9,0.05838267]
[1739191773081,3.78772,2640.2,2639.6,3.78842]
[1739191773297,3.78773,2640.1,2640.0,0.05832192]
[1739191773481,3.78773,2640.1,2639.6,3.78842]
[1739191773646,3.78772,2640.2,2640.0,0.05832192]
[1739191773971,3.0,2640.7,2640.1,0.05826116]
[1739191774143,3.78759,2640.2,2640.1,0.05826116]
[1739191774344,3.78784,2640.1,2639.4,3.7887]
[1739191774579,3.78784,2640.1,2639.5,3.78851]
[1739191774762,3.0,2640.4,2639.8,3.78806]
[1739191774948,3.78724,2640.5,2640.0,3.78784]
[1739191775143,3.0,2640.6,2639.4,3.78862]
[1739191775474,6.78694,2640.7,2639.3,3.73250792]
[1739191775682,10.57393,2640.7,2640.0,3.78778]
[1739191775848,3.78705,2640.6,2640.0,3.78778]
[1739191776033,3.78705,2640.6,2640.0,3.78776]
[1739191776587,4.60683,2640.9,2639.4,3.78865]
[1739191776746,4.60683,2640.9,2639.3,3.73250792]
[1739191776747,3.78697,2640.7,2640.0,3.78776]
[1739191776947,3.78711,2640.6,2640.0,3.78776]
[1739191777163,3.0,2640.6,2640.1,3.78773]
[1739191777667,6.78703,2640.6,2640.0,3.78776]
[1739191777971,6.78703,2640.6,2639.9,4.61094]
[1739191777972,3.78722,2640.5,2639.9,4.61094]
[1739191778155,3.78745,2640.3,2639.9,0.823]
[1739191778588,3.78745,2640.3,2639.8,3.7881]
[1739191779214,3.78723,2640.5,2640.0,3.78785]
[1739191779370,3.78723,2640.5,2639.9,3.788]
[1739191779889,4.60685,2640.9,2639.7,2.90950792]
[1739191780091,0.8202,2640.9,2639.9,3.78802]
[1739191780263,3.78628,2641.2,2640.6,3.78699]
[1739191780264,3.78627,2641.2,2640.6,3.78699]